Cogmind - Beta 11.1 @@@ ROGUE MODE // 2022.09.18 @ 18:29:58 Player: Zirov Result: Self-destructed Performance ------------- Evolutions (2) 1000 Regions Visited (7) 1400 Robots Destroyed (53) 265 Value Destroyed (1303) 1303 Prototype IDs (5) 100 Alien Tech Used (0) 0 Bonus (456) 456 TOTAL SCORE: 4524 Bonus ------- Follower Combat Kills 199 Aligned with FarCom 300 Friendly Fire -43 Cogmind --------- Core Integrity 540/550 Matter 264/300 Energy 160/160 System Corruption 0% Temperature Hot (213) Movement Treading (160) Location -8/Materials Parts ------- > --- POWER (1) -------- Light Nuclear Core > --- PROPULSION (4) --- Light Treads Light Treads Light Treads Light Treads > --- UTILITY (3) ------ Large Storage Unit Experimental Sensor Array Signal Interpreter > --- WEAPON (3) ------- Advanced Beam Cannon Makeshift Shrapnel Gun Improved Light Cannon > --- INVENTORY (15) --- Light Nuclear Core Titanium Leg Compact Matter Pod (150) Visual Processing Unit Advanced Targeting Computer Hardened Medium Armor Plating Improved Shield Generator Hacking Suite High-powered Tractor Beam YOLO Cannon Improved Light Cannon Assault Cannon Proton Missile Launcher Katana Peak State ------------ > --- POWER ------------ Light Nuclear Core > --- PROPULSION ------- Light Treads Light Treads Light Treads Light Treads > --- UTILITY ---------- Large Storage Unit Experimental Sensor Array Signal Interpreter > --- WEAPON ----------- Advanced Beam Cannon Makeshift Shrapnel Gun Proton Missile Launcher > --- INVENTORY -------- Light Nuclear Core Titanium Leg Heat Sink Compact Matter Pod Visual Processing Unit Advanced Targeting Computer Hardened Medium Armor Plating Improved Shield Generator High-powered Tractor Beam YOLO Cannon Improved Light Cannon Improved Light Cannon Improved Light Cannon Katana [Rating: 34] Favorites ----------- Power Ion Engine Engine Ion Engine Power Core Light Nuclear Core Propulsion Light Treads Treads Light Treads Utility Large Storage Unit Device Experimental Sensor Array Storage Large Storage Unit Processor Signal Interpreter Protection Light Armor Plating Weapon Improved Light Cannon Energy Cannon Advanced Beam Cannon Ballistic Gun Makeshift Shrapnel Gun Ballistic Cannon Improved Light Cannon Launcher Proton Missile Launcher Impact Weapon Mace Build | -11 -10 -10 -9 -9 -9 -8 -8 ------- Run | Scr Mat Min Mat Min Exi Min Mat Slots Evolved 4 | . . . 2 . . . 2 Power . | . . . . . . . . Propulsion 2 | . . . 1 . . . 1 Utility 1 | . . . 1 . . . . Weapon 1 | . . . . . . . 1 Parts Attached 35 | 6 12 2 5 4 . . 6 Power 6 | 1 4 . 1 . . . . Engine 5 | 1 4 . . . . . . Core 1 | . . . 1 . . . . Reactor . | . . . . . . . . Propulsion 7 | 2 1 1 1 . . . 2 Treads 7 | 2 1 1 1 . . . 2 Leg . | . . . . . . . . Wheel . | . . . . . . . . Hover . | . . . . . . . . Flight . | . . . . . . . . Utility 9 | 1 2 1 2 2 . . 1 Device 5 | . . 1 1 2 . . 1 Storage 2 | 1 1 . . . . . . Processor 1 | . . . 1 . . . . Hackware . | . . . . . . . . Protection 1 | . 1 . . . . . . Artifact . | . . . . . . . . Weapon 13 | 2 5 . 1 2 . . 3 Energy Gun . | . . . . . . . . Energy Cannon 1 | . . . . . . . 1 Ballistic Gun 3 | 2 . . . 1 . . . Ballistic Cannon 7 | . 5 . . 1 . . 1 Launcher 1 | . . . . . . . 1 Special Weapon . | . . . . . . . . Impact Weapon 1 | . . . 1 . . . . Slashing Weapon . | . . . . . . . . Piercing Weapon . | . . . . . . . . Special Melee Weapon . | . . . . . . . . Unidentified Prototypes 1 | . . . 1 . . . . Corrupted Parts 1 | . . . . 1 . . . System Corruption 4 | . . . . 4 . . . Parts Lost 2 | . . 2 . . . . . Power . | . . . . . . . . Propulsion 1 | . . 1 . . . . . Utility 1 | . . 1 . . . . . Weapon . | . . . . . . . . Highest Loss Streak 1 | . . 1 . . . . . To Critical Strikes . | . . . . . . . . Average Slot Usage (%) 99 | . 97 99 99 100 100 100 98 Engine 7 | . 14 14 5 . . . . Core 4 | . . . 5 11 11 11 9 Treads 30 | . 27 27 32 33 33 33 36 Device 6 | . . 6 11 11 11 11 7 Storage 12 | . 14 14 11 11 11 11 9 Processor 5 | . . . 10 11 11 11 9 Protection 4 | . 12 7 . . . . . Energy Cannon 1 | . . . . . . . 9 Ballistic Gun 4 | . 5 . . 7 11 11 9 Ballistic Cannon 19 | . 21 28 19 13 11 11 6 Naked Turns . | . . . . . . . . Heaviest Build 39 | 10 36 36 35 34 32 32 39 Greatest Support 80 | 40 40 40 60 60 60 60 80 Greatest Overweight (x) 1 | . 1 . . . . . . Average Overweight (x) . | . . . . . . . . Largest Inventory Capacity 15 | 8 15 15 15 15 15 15 15 Average Capacity 13 | 7 11 15 15 15 15 15 15 Most Carried 15 | . 13 15 15 15 15 15 15 Average Carried 12 | . 5 14 14 14 14 15 14 Final Capacity 15 | 8 15 15 15 15 15 15 15 Final Carried 15 | . 13 14 14 15 15 15 15 Class Distribution -------------------- 86% | Mutant 13% | Skirmisher Dominant Class ---------------- Mutant | -10/Materials Mutant | -10/Mines Mutant | -9/Materials Mutant | -9/Mines Mutant | -9/Exiles Skirmisher | -8/Mines Skirmisher | -8/Materials Resources | -11 -10 -10 -9 -9 -9 -8 -8 ----------- Run | Scr Mat Min Mat Min Exi Min Mat Matter Collected 1622 | 196 527 256 171 75 . . 397 Remotely . | . . . . . . . . Salvage Created 1611 | . 469 203 330 146 . . 463 Parts 125 | . 26 18 27 12 . . 42 Haulers Intercepted 6 | . 2 . 3 . . . 1 Recyclers Shooed 4 | . 3 . 1 . . . . Parts Field Recycled . | . . . . . . . . Retrieved Matter . | . . . . . . . . Parts Self-Destructed . | . . . . . . . . Prevented . | . . . . . . . . Kills | -11 -10 -10 -9 -9 -9 -8 -8 ------- Run | Scr Mat Min Mat Min Exi Min Mat Combat Hostiles Destroyed 32 | . 7 8 5 4 . . 8 Guns 9 | . 3 . . 2 . . 4 Cannons 22 | . 4 8 5 2 . . 3 AOE 1 | . . . . . . . 1 Classes Destroyed 13 | . 6 3 1 1 . . 2 Worker 2 | . 1 . 1 . . . . Builder 1 | . . . . . . . 1 Tunneler 1 | . . 1 . . . . . Hauler 6 | . 2 . 3 . . . 1 Recycler 2 | . 1 . . . . . 1 Mechanic 1 | . . . . . . . 1 Operator 2 | . 1 . . . . . 1 Watcher 6 | . 2 . 3 . . . 1 Swarmer 8 | . . 3 2 . . . 3 Grunt 13 | . 7 3 . 3 . . . Brawler 1 | . . . 1 . . . . Duelist 1 | . . . . 1 . . . Sentry 9 | . . 2 2 . . . 5 Best Kill Streak 9 | . 3 3 3 2 . . 9 Combat Bots Only 4 | . 3 3 3 2 . . 4 Max Kills in Single Turn 2 | . 1 1 2 1 . . 2 Gunslinging . | . . . . . . . . Exploded 1 | . . . . . . . 1 Melee . | . . . . . . . . Uniques/NPCs Destroyed . | . . . . . . . . Combat | -11 -10 -10 -9 -9 -9 -8 -8 -------- Run | Scr Mat Min Mat Min Exi Min Mat Damage Taken 1313 | . 325 359 93 194 . . 342 Core 227 | . 112 51 44 10 . . 10 Absorbed by Shields . | . . . . . . . . Regen/Repaired (Parts) 21 | . . . . . . . 21 Core Remaining (%) 73 | 100 . 34 . . . 86 . Volleys Fired 120 | . 50 25 16 6 . . 23 Largest 3 | . 2 2 2 2 . . 3 Hottest 131 | . 70 78 78 63 . . 131 Shots Fired 247 | . 96 50 32 12 . . 57 Gun 59 | . 34 . . 6 . . 19 Cannon 184 | . 62 50 32 6 . . 34 Launcher 4 | . . . . . . . 4 Special . | . . . . . . . . Kinetic 223 | . 96 50 32 12 . . 33 Thermal 20 | . . . . . . . 20 Explosive . | . . . . . . . . Electromagnetic 4 | . . . . . . . 4 Robot Hit Streak 13 | . 9 4 5 4 . . 13 Robot Miss Streak 6 | . 5 6 1 3 . . 4 Penetration Max . | . . . . . . . . Secondary Targets . | . . . . . . . . Shots Hit Robots 140 | . 56 23 20 7 . . 34 Core Hits 76 | . 22 12 12 9 . . 21 Critical Kills . | . . . . . . . . Critical Parts Destroyed . | . . . . . . . . Critical Strikes 6 | . 1 3 1 . . . 1 Blast 6 | . 1 3 1 . . . 1 Melee Attacks 4 | . . . 4 . . . . Impact 4 | . . . 4 . . . . Slashing . | . . . . . . . . Piercing . | . . . . . . . . Sneak Attacks 1 | . . . 1 . . . . Combat Hostiles . | . . . . . . . . Follow-up Attacks . | . . . . . . . . Damage Inflicted 2892 | . 845 560 528 141 . 15 803 Guns 584 | . 209 . . 100 . . 275 Cannons 2072 | . 619 478 483 41 . . 451 Explosions 74 | . . . . . . . 74 Melee 41 | . . . 41 . . . . Ramming 121 | . 17 82 4 . . 15 3 Kinetic 2367 | . 828 478 483 141 . . 437 Thermal 289 | . . . . . . . 289 Explosive . | . . . . . . . . Electromagnetic 74 | . . . . . . . 74 Impact 41 | . . . 41 . . . . Slashing . | . . . . . . . . Piercing . | . . . . . . . . Highest Corruption 4 | . . . . 4 4 4 . Average Corruption 4 | . . . . 4 4 4 . Corruption Purged . | . . . . . . . . Corruption Blocked . | . . . . . . . . Effects 10 | . . . . . 7 3 . Message Errors 3 | . . . . . 3 . . Matter Fused 4 | . . . . . 3 1 . Heat Flow Errors 1 | . . . . . . 1 . Data Loss (minor) 2 | . . . . . 1 1 . Overload Shots . | . . . . . . . . Overflow Damage 25 | . . 1 20 . . . 4 Projectiles 20 | . . 1 19 . . . . Explosions 4 | . . . . . . . 4 Melee 1 | . . . 1 . . . . Knockbacks 20 | . 6 8 6 . . . . Impact 1 | . . . 1 . . . . Kinetic 17 | . 6 8 3 . . . . Secondary 2 | . . . 2 . . . . Self-Inflicted Damage . | . . . . . . . . Shots . | . . . . . . . . Rammed 18 | . 4 11 1 . . 1 1 Targets Rammed 18 | . 4 11 1 . . 1 1 Kicked . | . . . . . . . . Crushed . | . . . . . . . . Highest Temperature 237 | . 117 210 36 15 . 165 237 Average Temperature 50 | . 35 74 13 7 . 87 79 Received Heat Transfer 414 | . 192 99 18 51 . . 54 Siege Activations . | . . . . . . . . Robots Corrupted . | . . . . . . . . Combat Hostiles . | . . . . . . . . Parts Fried . | . . . . . . . . Impact Corruptions 1 | . . . 1 . . . . Robots Melted . | . . . . . . . . Combat Hostiles . | . . . . . . . . Parts Melted . | . . . . . . . . Heat Transferred 518 | . . . . . . . 518 Parts Sabotaged . | . . . . . . . . Parts Stolen . | . . . . . . . . Parts Stripped . | . . . . . . . . Power Chain Reactions 1 | . . . . . . . 1 Missiles Intercepted . | . . . . . . . . Alert | -11 -10 -10 -9 -9 -9 -8 -8 ------- Run | Scr Mat Min Mat Min Exi Min Mat Peak Influence 411 | . 143 146 411 122 . . 268 Initial 49 | . . 8 13 49 . . . Average 86 | . 53 35 245 59 . . 88 Maximum Alert Level 2 | . . . 2 . . . 1 Low Security (%) 83 | 100 100 100 19 100 . 100 85 Level 1 15 | . . . 75 . . . 14 Level 2 . | . . . 4 . . . . Level 3 . | . . . . . . . . Level 4 . | . . . . . . . . Level 5 . | . . . . . . . . High Security . | . . . . . . . . Max Security . | . . . . . . . . Squads Dispatched 5 | . 1 1 1 . . . 2 Investigation 1 | . . 1 . . . . . Extermination . | . . . . . . . . Reinforcement 4 | . 1 . 1 . . . 2 Assault . | . . . . . . . . Garrison . | . . . . . . . . Intercept . | . . . . . . . . Searches Triggered . | . . . . . . . . Construction Impeded 1 | . . . . . . . 1 Haulers Reinforced . | . . . . . . . . Active Scanning Responses . | . . . . . . . . Cargo Convoy Interrupts . | . . . . . . . . Stealth | -11 -10 -10 -9 -9 -9 -8 -8 --------- Run | Scr Mat Min Mat Min Exi Min Mat Distress Signals 6 | . 2 . 2 . . . 2 Communications Jammed . | . . . . . . . . Distress Signals . | . . . . . . . . Times Spotted 64 | . 16 11 20 5 . . 12 Peak Tracking Total 6 | . 3 3 6 3 . . 4 Tactical Retreats 4 | . 1 1 . . . . 2 Traps | -11 -10 -10 -9 -9 -9 -8 -8 ------- Run | Scr Mat Min Mat Min Exi Min Mat Traps Triggered 3 | . 1 . . 2 . . . Indirectly . | . . . . . . . . Trap Hack Attempts . | . . . . . . . . Triggered . | . . . . . . . . Disarmed . | . . . . . . . . Reprogrammed . | . . . . . . . . Reused . | . . . . . . . . Traps Extracted . | . . . . . . . . Installed . | . . . . . . . . Triggered . | . . . . . . . . Machines | -11 -10 -10 -9 -9 -9 -8 -8 ---------- Run | Scr Mat Min Mat Min Exi Min Mat Machines Disabled 4 | . 1 . . 1 . . 2 Max in Single Turn 1 | . 1 . . 1 . . 1 Machines Sabotaged . | . . . . . . . . Garrisons Compromised . | . . . . . . . . Overloaded Fab Kills . | . . . . . . . . Hacking | -11 -10 -10 -9 -9 -9 -8 -8 --------- Run | Scr Mat Min Mat Min Exi Min Mat Machines Accessed 14 | . 6 1 3 1 . . 3 Terminals 11 | . 6 1 2 . . . 2 Fabricators . | . . . . . . . . Repair Stations 1 | . . . . . . . 1 Recycling Units . | . . . . . . . . Scanalyzers 1 | . . . 1 . . . . Garrison Access . | . . . . . . . . Total Hacks 40 | . 16 3 13 1 . . 7 Successful 21 | . 7 1 8 1 . . 4 Failed 19 | . 9 2 5 . . . 3 Catastrophic 3 | . 2 . 1 . . . . Database Lockouts . | . . . . . . . . Manual 7 | . 4 . 1 . 1 . 1 Terminals 33 | . 16 3 9 . . . 5 Fabricators . | . . . . . . . . Repair Stations 2 | . . . . . . . 2 Recycling Units . | . . . . . . . . Scanalyzers 4 | . . . 4 . . . . Garrison Access . | . . . . . . . . Terminal Hacks 15 | . 7 1 4 1 . . 2 Record 2 | . . 1 . . . . 1 Prototype ID Bank 1 | . 1 . . . . . . Open Door 1 | . . . . 1 . . . Branch Access Points 2 | . 1 . . . . . 1 Emergency Access Points 1 | . . . 1 . . . . Alert Level 2 | . 1 . 1 . . . . Locate Traps 3 | . 2 . 1 . . . . Investigation Status 1 | . . . 1 . . . . Hauler Manifests 1 | . 1 . . . . . . Registered Components 1 | . 1 . . . . . . Fabricator Hacks . | . . . . . . . . Repair Station Hacks 2 | . . . . . . . 2 Scan Component 1 | . . . . . . . 1 Repair 1 | . . . . . . . 1 Recycling Unit Hacks . | . . . . . . . . Scanalyzer 4 | . . . 4 . . . . Insert Component 2 | . . . 2 . . . . Analyze 2 | . . . 2 . . . . Garrison Access Hacks . | . . . . . . . . Unauthorized Hacks . | . . . . . . . . Terminals . | . . . . . . . . Fabricators . | . . . . . . . . Repair Stations . | . . . . . . . . Recycling Units . | . . . . . . . . Scanalyzers . | . . . . . . . . Garrison Access . | . . . . . . . . Data Cores Recovered . | . . . . . . . . Used . | . . . . . . . . Hacking Detections 12 | . 6 1 2 . . . 3 Full Trace Events 1 | . . 1 . . . . . Feedback Events . | . . . . . . . . Feedback Blocked . | . . . . . . . . Robot Schematics Acquired . | . . . . . . . . Robots Built . | . . . . . . . . Authchips . | . . . . . . . . Time . | . . . . . . . . Total Robot Build Rating . | . . . . . . . . Part Schematics Acquired 2 | . . . 2 . . . . Parts Built . | . . . . . . . . Authchips . | . . . . . . . . Time . | . . . . . . . . Total Part Build Rating . | . . . . . . . . Parts Repaired 1 | . . . . . . . 1 Time 108 | . . . . . . . 108 Parts Recycled . | . . . . . . . . Recycled Matter . | . . . . . . . . Retrieved Matter . | . . . . . . . . Retrieved Components . | . . . . . . . . Parts Scanalyzed 2 | . . . 2 . . . . Part Schematics Acquired 2 | . . . 2 . . . . Parts Damaged . | . . . . . . . . Bothacking | -11 -10 -10 -9 -9 -9 -8 -8 ------------ Run | Scr Mat Min Mat Min Exi Min Mat Used RIF Installer . | . . . . . . . . Robots Hacked . | . . . . . . . . Non-combat . | . . . . . . . . Combat . | . . . . . . . . Robot Hacks Applied . | . . . . . . . . Relay Couplers Released . | . . . . . . . . Fabnet Peak Effective % . | . . . . . . . . Robots Rewired . | . . . . . . . . Allies Hacked . | . . . . . . . . Hacks Repelled . | . . . . . . . . Allies | -11 -10 -10 -9 -9 -9 -8 -8 -------- Run | Scr Mat Min Mat Min Exi Min Mat Total Allies 3 | . . 3 . . . . . Largest Group 3 | . . 3 3 1 . . . Highest-Rated Group 40 | . . 40 40 8 . . . Highest-Rated Ally 16 | . . 16 16 8 . . . Total Orders . | . . . . . . . . Ally Attacks 59 | . . . 54 5 . . . Total Damage 504 | . . . 458 46 . . . Kills 11 | . . . 10 1 . . . Allies Corrupted . | . . . . . . . . Allies Melted . | . . . . . . . . Intel | -11 -10 -10 -9 -9 -9 -8 -8 ------- Run | Scr Mat Min Mat Min Exi Min Mat Robot Analysis Total . | . . . . . . . . Derelict Logs Recovered 3 | . . 2 . 1 . . . Drone Launches . | . . . . . . . . Drone Recoveries . | . . . . . . . . Exploration | -11 -10 -10 -9 -9 -9 -8 -8 ------------- Run | Scr Mat Min Mat Min Exi Min Mat Turns Passed 5110 | 85 1127 1356 896 592 348 135 571 Spaces Moved 2785 | 50 578 785 513 348 217 83 211 Core 3 | 3 . . . . . . . Treads 2782 | 47 578 785 513 348 217 83 211 Legs . | . . . . . . . . Wheels . | . . . . . . . . Hover . | . . . . . . . . Flight . | . . . . . . . . Fastest Speed 50 | 50 160 160 160 160 160 160 160 Average Speed 159 | 153 160 160 160 160 160 160 160 Slowest Speed 240 | 160 240 160 160 160 160 160 160 Overloaded Moves . | . . . . . . . . Propulsion Burnouts . | . . . . . . . . Robots Hopped . | . . . . . . . . Cave-ins Triggered . | . . . . . . . . Exploration Rate (%) 50 | 4 92 101 37 71 61 23 15 Regions Visited 7 Branch Regions 4 Pre-discovered Areas 2 | . . 2 . . . . . Known Exits Taken 5 | . 1 . 1 1 1 1 . Unknown Exits Taken 2 | 1 . 1 . . . . . Scrap Searched 2 | . . 1 . 1 . . . Spaces Dug 3 | . . . 3 . . . . Terrain Destroyed 15 | . . 5 6 . . . 4 Melee 3 | . . . 3 . . . . Projectile 8 | . . 5 3 . . . . AOE 4 | . . . . . . . 4 Terrain Rammed . | . . . . . . . . Walls Destroyed . | . . . . . . . . Machines Disabled . | . . . . . . . . Actions | -11 -10 -10 -9 -9 -9 -8 -8 --------- Run | Scr Mat Min Mat Min Exi Min Mat Total 3195 | 55 686 829 549 371 219 85 401 Wait 180 | . 22 4 4 7 . . 143 Move 2778 | 49 577 784 512 347 216 82 211 Hop . | . . . . . . . . Pick Up 34 | . 12 3 4 4 1 1 9 Fast Attach 14 | 6 6 . 1 . . . 1 Attach 7 | . . 2 2 1 . . 2 Detach 2 | . 2 . . . . . . Swap 14 | . 6 . 2 3 . . 3 Drop 24 | . 7 . 3 3 2 1 8 Fire 120 | . 50 25 16 6 . . 23 Melee 4 | . . . 4 . . . . Ram . | . . . . . . . . Kick . | . . . . . . . . Crush 18 | . 4 11 1 . . 1 1 Escape Stasis . | . . . . . . . . Rewire . | . . . . . . . . Trap . | . . . . . . . . Miscellaneous . | . . . . . . . . Route ------- -11/Scrapyard -10/Materials (discovered 5 exits: *Mat x3 / *Min x2) -10/Mines (discovered 2 exits: *Mat x2) -9/Materials (discovered 2 exits: *Mat / *Min) -9/Mines (discovered 2 exits: *Mat / *Exi) -9/Exiles (discovered 2 exits: *Min x2) -8/Mines -8/Materials History --------- Turn | Location | Event 27 | -11/Scrapyard | Discovered new exit (range 16) 86 | -11/Scrapyard | Entered Materials 283 | -10/Materials | Discovered new exit (range 16) 324 | -10/Materials | Build established: Mutant 475 | -10/Materials | Discovered new exit (range 16) 620 | -10/Materials | Discovered new exit (range 7) 777 | -10/Materials | Identified exit to Mines 785 | -10/Materials | Discovered new exit (range 14) 1213 | -10/Materials | Entered Mines 1270 | -10/Mines | Learned location of Storage (-9) 1405 | -10/Mines | Found a damaged Exp. Sensor Array with a note attached 1409 | -10/Mines | Found Prototype Device 1939 | -10/Mines | Core integrity fell below 50% 2033 | -10/Mines | Discovered new exit (range 9) 2172 | -10/Mines | Discovered new exit (range 5) 2462 | -10/Mines | Assisted by bots powering up and referring to "LRC-V3" 2569 | -10/Mines | Entered Materials 2569 | -9/Materials | Accompanied by 3 allies 2569 | -9/Materials | Evolved 2 slots: Propulsion x1, Utility x1 2569 | -9/Materials | Identified Exp. Sensor Array 2570 | -9/Materials | Identified exit to Mines 3216 | -9/Materials | Discovered new exit (range 11) 3465 | -9/Materials | Entered Mines 3465 | -9/Mines | Accompanied by 1 ally 3585 | -9/Mines | A weapon hastily lodged in a ceiling crevice suddenly fell to the ground 3879 | -9/Mines | Learned 2 Materials zone layouts 3932 | -9/Mines | Assembled infested the area 3984 | -9/Mines | Met a Derelict who couldn't figure out how to use a Trap Extractor 4009 | -9/Mines | Discovered new exit (range 12) 4025 | -9/Mines | Identified exit to Materials 4050 | -9/Mines | Deemed a non-threat by the Exiles lab entrance 4050 | -9/Mines | Discovered new exit (range 5) 4055 | -9/Mines | Identified exit to Exiles 4057 | -9/Mines | Entered Exiles 4058 | -9/Exiles | Identified exit to Mines 4096 | -9/Exiles | Met 8R-AWN 4125 | -9/Exiles | Met EX-HEX 4168 | -9/Exiles | Met EX-BIN 4187 | -9/Exiles | Aligned with FarCom system 4189 | -9/Exiles | Given EX-Vault access code 4229 | -9/Exiles | Opened EX-Vault 4255 | -9/Exiles | Found Prototype Energy Cannon 4288 | -9/Exiles | Warned to stay clear of 0b10 Research branches 4331 | -9/Exiles | Met EX-DEC 4391 | -9/Exiles | Discovered exit to Mines (range 10) 4405 | -9/Exiles | Left Exiles lab with YOLO Cannon 4405 | -9/Exiles | Entered Mines 4516 | -8/Mines | Discovered exit to Materials (range 9) 4540 | -8/Mines | Entered Materials 4540 | -8/Materials | Evolved 2 slots: Propulsion x1, Weapon x1 4686 | -8/Materials | Repaired Exp. Sensor Array 4707 | -8/Materials | Build established: Skirmisher 5111 | -8/Materials | Self-destructed Last Messages --------------- 05026_ Y-45 Defender destroyed. 05029_ Acquired 38 matter. 05036_ Acquired 8 matter. 05052_ Slammed into U-05 Engineer. 05052_ ALERT: Construction progress impeded, dispatching reinforcements to local area. 05058_ Dropped Imp. Light Cannon. 05058_ Acquired Assault Cannon. 05065_ O-16 Technician destroyed. 05068_ Acquired 9 matter. 05068_ K-01 Serf collects debris. 05075_ Dropped Heat Sink. 05075_ Acquired Hacking Suite. 05076_ K-01 Serf collects debris. 05080_ W-25 Informer sends out distress signal. 05098_ Hadron Collector disabled. 05099_ Penetrated by Slug. 05106_ Slug penetrates Wall. 05108_ Y-45 Defender destroyed. 05109_ Slug penetrates Wall. Map ----- +----------------------------------------------------+ | ???????????????????????????????????? # # | | ??#+???????????????????????????????? ###+### | | ? ????????????????????????????????+### #?# | | ? ????????????????????????????????? # #?##+#### | | ?????????#########???????????????? # #??# #??? | | ?????????# T ##???????????????" # #??# #??? | | ??????????# || #???????????????" # #??# #### | | ???????????# || ##???????????????" # #??# | | #######+####] || #????????????????#### #??# | | % # #???????????????????# #??# """ | | % % +% """ #???????????????????# #??# """ | | % % % # """x#????????????????#### #?## """ | | #######+####! """ #???????????????? ## #?#T | | ????# # ! #???????????????? ## #?## | | ????# # !=#?????????Y?????? ## #### """ | | ????# # [[*!#???????????????? # x """ | | ????# "Y" ##+###!##???????????????? + """ | | ????# """ ## #?#%#????????????????? # | | ????# + #?#%#?????????????????### x | | ????###########?# #??????????????????# | | ????????????????# #??????????????????# | | ????????????????# #??????????????????# | | ????????????????# #########??????????## #### | | ????????????????# ## #???????????# x #??? | | ????????????????# ##""" #???????????# x #### | | #????????##?????# ##""" !@#???????????# ##### # | | #???????## ###### ##"" #???????????# #???# # | | #???????# ==[ ##x##""!! #???????????# #???# # | | #???????# =[ =*## ## !%h #???????????# #???# # | | #???????# =[ =%# ###+######???????### #???# # | | #???????# / / ] [ +??????? ## #???# # | | #???????# !# ###### #??????? ## #???# # | | #???????# "T" ## ##?????? #??????? ## #???# #### | | ????????#########+#???????? #??????? ## #???# #??? | | ???????????????? x??x????????????? ## #???# #??? | | ???????????????? ???????????????? ## #???# #??? | | ??????????????? ??x?????????????????????????? | | ??????????????? ???????????????????????????? | | ####??????????#########??????????????????????????? | | #?????????????????????????????????????????????? | | """#????????????????????????g????????????????????? | | R"#?????????????????????????w??x????????????????? | | """#????????????????????????g??xxx???????????????? | | #???????????????????????????x?????????????????? | | #?????????????????????????????????????????????? | | ####?????????????????????????????????????????????? | | ?????????????????????????????????????????????????? | | ?????????????????????????????????????????????????? | | ?????????????????????????????????????????????????? | | ?????????????????????????????????????????????????? | +----------------------------------------------------+ Best States ------------- Heat Dissipation 38 Energy Generation 14 Energy Capacity 250 Matter Stores 300 Matter Capacity 300 Sight Range 16 Robot Scan Range 20 Terrain Scan Density 10 Armor Coverage 150 Evasion (%) 40 Recoil Reduction 4 Trap Extractor Capacity 6 Item Schematics ----------------- Cld. Ion Engine | -9/Materials | Scanalyzed Adv. Beam Cannon | -9/Materials | Scanalyzed Robot Schematics ------------------ None Fabricated ------------ Nothing Alien Tech Used ----------------- None Achievements -------------- None Challenges ------------ None Game ------ Seed AuthchipGyrokineticLaser Manual? 0 Play Time 00:36:33 Cumulative 6.8 hours Start 2022.09.17 @ 18:53:08 End 2022.09.18 @ 18:29:58 Sessions 5 Manual Loads 0 Difficulty Rogue Special Mode None Game No. 4 Rogue 4 Adventurer 0 Explorer 0 Win Type - Total 0 Types 0/0/0/0/0/0/0/0/0 Lore% 4 Gallery% 14 Achievement% 16 Wizard Run 0 Options --------- ASCII 1 Keyboard 1 Movement Numpad Keybinds 0 Fullscreen 1 Font 18/SmallcapsGlow Map View 76x50 Tactical HUD 1 Map Filters NONE Filters NONE Steam 1 RUN: 95acd6fc-3f27-432f-9955-4ce3279bca73